fUSD/lending_fUSD_20241208
["ID","MTS","AMOUNT","RATE_DAILY","PERIOD"]
[344640282,1733657432281,-1000.0,0.00020894,2]
[344640283,1733657432291,-3597.22,0.00020894,2]
[344640284,1733657432300,-432.32,0.00020952,2]
[344640285,1733657432310,-273.91,0.00020968,2]
[344640286,1733657432320,-3720.00463992,0.00021,2]
[344640290,1733657437764,-3799.93045815,0.00021,2]
[344640291,1733657437826,-638.79049665,0.00021,2]
[344640292,1733657437834,-200.0,0.00021045,2]
[344640293,1733657437843,-159.01,0.00021077,2]
[344640294,1733657437852,-878.44,0.00021086,2]
[344640295,1733657437861,-200.0,0.00021179,2]
[344640296,1733657437870,-208.69183517,0.00021424,2]
[344640297,1733657437884,-41.30816483,0.00021424,2]
[344640298,1733657437893,-244.11955079,0.00021463,2]
[344640299,1733657437903,-347.14044921,0.00021463,2]
[344640300,1733657437916,-336.65,0.00021469,2]
[344640301,1733657437925,-299.72,0.00021545,30]
[344640302,1733657437935,-150.0,0.00021568,2]
[344640303,1733657437944,-763.17955079,0.00021644,2]
[344640304,1733657437955,-263.63994921,0.00021644,2]
[344640305,1733657437964,-250.0,0.00021649,2]
[344640306,1733657437973,-16291.20069076,0.00021675,2]
[344640307,1733657437984,-2185.07426808,0.00021675,2]
[344640308,1733657437995,-9325.72504116,0.00021675,2]
[344640309,1733657438004,-294.834,0.0002185,2]
[344640310,1733657438014,-200.0,0.000219,2]
[344640311,1733657438022,-200.0,0.00021918,2]
[344640312,1733657438032,-200.0,0.00021918,2]
[344640313,1733657438040,-200.0,0.00021918,2]
[344640314,1733657438050,-500.76,0.00021918,2]
[344640315,1733657438059,-3246.0,0.00022,2]
[344640316,1733657438068,-1985.6282,0.00022,2]
[344640317,1733657438077,-808.527684,0.00022,3]
[344640318,1733657438089,-733.99255442,0.00022,3]
[344640319,1733657438107,-2682.394968,0.00022,3]
[344640320,1733657438122,-3766.02486025,0.00022,3]
[344640321,1733657438136,-1000.0,0.00022,2]
[344640322,1733657438146,-566.71635042,0.00022014,2]
[344640323,1733657438155,-173.33164658,0.00022015,2]
[344640324,1733657438164,-1000.0,0.00022015,2]
[344640325,1733657438175,-36967.542,0.00022015,2]
[344640326,1733657438184,-1985.9922,0.00022015,2]
[344640327,1733657438194,-598.79,0.00022022,2]
[344640328,1733657438203,-161.04207877,0.00022025,2]
[344640329,1733657438212,-165.87034363,0.00022025,2]
[344640330,1733657438222,-500.0,0.00022057,2]
[344640331,1733657438231,-500.0,0.00022073,2]
[344640332,1733657438240,-163.70950506,0.00022073,2]
[344640333,1733657438249,-159.92974554,0.00022073,2]
[344640334,1733657438258,-159.94963698,0.00022073,2]
[344640335,1733657438267,-159.92975299,0.00022073,2]
[344640336,1733657438276,-406.15235435,0.00022073,2]
[344640337,1733657438285,-500.0,0.00022073,2]
[344640338,1733657438294,-500.0,0.00022073,2]
[344640339,1733657438303,-601.0,0.00022082,2]
[344640340,1733657438312,-26790.0,0.00022082,2]
[344640341,1733657438321,-566.71635036,0.00022083,2]
[344640342,1733657438330,-1000.0,0.00022099,2]
[344640343,1733657438339,-77000.66189014,0.000221,2]
[344640345,1733657438349,-573.94,0.00022114,2]
[344640347,1733657438358,-5232.17600083,0.00022114,7]
[344640349,1733657438367,-335.64061785,0.00022114,2]
[344640351,1733657438377,-4748156.08,0.00022115,7]
[344640353,1733657438397,-566.71635036,0.00022153,2]
[344640355,1733657438406,-161.51426928,0.00022173,2]
[344640356,1733657438416,-400.13238884,0.00022173,2]
[344640357,1733657438425,-159.92975177,0.00022173,2]
[344640358,1733657438434,-159.9297537,0.00022173,2]
[344640359,1733657438443,-161.928874,0.00022173,2]
[344640360,1733657438453,-566.71635036,0.00022222,2]
[344640361,1733657438462,-573.94,0.00022251,2]
[344640362,1733657438470,-566.71635036,0.00022292,2]
[344640363,1733657438480,-566.71635036,0.00022361,2]
[344640364,1733657438488,-573.94,0.00022388,2]
[344640365,1733657438497,-166.67,0.0002242,2]
[344640366,1733657438506,-566.71635036,0.00022431,2]
[344640367,1733657438515,-566.71635036,0.000225,2]
[344640368,1733657438525,-573.94,0.00022525,2]
[344640369,1733657438534,-200.0,0.00022567,2]
[344640370,1733657438544,-566.71635036,0.0002257,2]
[344640371,1733657438553,-500.0,0.00022621,2]
[344640372,1733657438562,-1000.0,0.00022621,2]
[344640373,1733657438571,-566.71635036,0.00022639,2]
[344640374,1733657438580,-3594.11521696,0.00022655,2]
[344640375,1733657438589,-573.94,0.00022662,2]
[344640376,1733657438597,-500.0,0.00022739,2]
[344640377,1733657438606,-500.0,0.00022739,2]
[344640378,1733657438615,-524.13,0.00022739,2]
[344640379,1733657438625,-500.0,0.00022739,2]
[344640380,1733657438638,-304.19904964,0.00022739,2]
[344640381,1733657438648,-500.0,0.00022739,2]
[344640382,1733657438657,-500.0,0.00022739,2]
[344640383,1733657438666,-555.56,0.00022739,2]
[344640384,1733657438675,-500.0,0.00022739,2]
[344640385,1733657438683,-216.15,0.00022739,2]
[344640386,1733657438692,-500.0,0.00022739,2]
[344640387,1733657438701,-555.08,0.00022739,2]
[344640388,1733657438710,-500.0,0.00022739,2]
[344640389,1733657438719,-500.0,0.00022739,2]
[344640390,1733657438729,-500.0,0.00022739,2]
[344640391,1733657438738,-246.04,0.00022739,2]
[344640392,1733657438747,-500.0,0.00022739,2]
[344640393,1733657438755,-501.24477742,0.00022739,2]
[344640394,1733657438765,-513.56131812,0.00022739,2]
[344640395,1733657438774,-514.87289183,0.00022739,2]
[344640396,1733657438783,-500.0,0.00022739,2]
[344640397,1733657438793,-503.19046429,0.00022739,2]
[344640398,1733657438802,-500.0,0.00022739,2]
[344640399,1733657438811,-500.0,0.00022739,2]
[344640400,1733657438820,-357.49,0.00022739,2]
[344640401,1733657438829,-500.0,0.00022739,2]
[344640402,1733657438838,-500.0,0.00022739,2]
[344640403,1733657438846,-500.0,0.00022739,2]
[344640404,1733657438855,-500.0,0.00022739,2]
[344640405,1733657438864,-500.0,0.00022739,2]
[344640406,1733657438873,-500.0,0.00022739,2]
[344640407,1733657438884,-500.0,0.00022739,2]
[344640408,1733657438893,-500.0,0.00022739,2]
[344640409,1733657438902,-153.18,0.00022739,2]
[344640410,1733657438911,-620.79,0.00022739,2]
[344640411,1733657438920,-500.0,0.00022739,2]
[344640412,1733657438930,-566.85,0.00022739,2]
[344640413,1733657438941,-503.97492945,0.00022739,2]
[344640414,1733657438950,-513.09307266,0.00022739,2]
[344640415,1733657438959,-500.0,0.00022739,2]
[344640416,1733657438968,-500.0,0.00022739,2]
[344640417,1733657438977,-500.0,0.00022739,2]
[344640418,1733657438986,-613.51,0.00022739,2]
[344640419,1733657438998,-500.0,0.00022739,2]
[344640420,1733657439007,-500.0,0.00022739,2]
[344640421,1733657439016,-455.09536644,0.00022739,2]
[344640422,1733657439025,-395.9430445,0.00022739,2]
[344640423,1733657439034,-500.0,0.00022739,2]
[344640424,1733657439042,-500.0,0.00022739,2]
[344640425,1733657439052,-500.0,0.00022739,2]
[344640426,1733657439061,-500.0,0.00022739,2]
[344640427,1733657439070,-195.50583154,0.00022739,2]
[344640428,1733657439079,-500.0,0.00022739,2]
[344640429,1733657439088,-500.0,0.00022739,2]
[344640430,1733657439098,-500.0,0.00022739,2]
[344640431,1733657439109,-500.0,0.00022739,2]
[344640432,1733657439118,-500.0,0.00022739,2]
[344640433,1733657439127,-467.2703609,0.00022739,2]
[344640434,1733657439141,-407.02,0.00022739,2]
[344640435,1733657439150,-500.0,0.00022739,2]
[344640436,1733657439159,-500.0,0.00022739,2]
[344640437,1733657439168,-500.0,0.00022739,2]
[344640438,1733657439177,-533.49,0.00022739,2]
[344640439,1733657439187,-500.0,0.00022739,2]
[344640440,1733657439196,-500.0,0.00022739,2]
[344640441,1733657439205,-500.0,0.00022739,2]
[344640442,1733657439215,-500.0,0.00022739,2]
[344640443,1733657439224,-500.0,0.00022739,2]
[344640444,1733657439233,-500.0,0.00022739,2]
[344640445,1733657439243,-500.0,0.00022739,2]
[344640446,1733657439252,-500.0,0.00022739,2]
[344640447,1733657439262,-500.0,0.00022739,2]
[344640448,1733657439271,-500.0,0.00022739,2]
[344640449,1733657439280,-500.0,0.00022739,2]
[344640450,1733657439289,-474.2542617,0.00022739,2]
[344640451,1733657439298,-500.0,0.00022739,2]
[344640452,1733657439307,-500.0,0.00022739,2]
[344640453,1733657439316,-500.0,0.00022739,2]
[344640454,1733657439325,-500.0,0.00022739,2]
[344640455,1733657439334,-500.0,0.00022739,2]
[344640456,1733657439343,-500.0,0.00022739,2]
[344640457,1733657439352,-470.64166415,0.00022739,2]
[344640458,1733657439361,-500.0,0.00022739,2]
[344640459,1733657439370,-386.61011057,0.00022739,2]
[344640460,1733657439381,-500.0,0.00022739,2]
[344640461,1733657439390,-515.49501432,0.00022739,2]
[344640462,1733657439399,-500.0,0.00022739,2]
[344640463,1733657439408,-500.0,0.00022739,2]
[344640464,1733657439417,-500.0,0.00022739,2]
[344640465,1733657439426,-500.0,0.00022739,2]
[344640466,1733657439435,-500.0,0.00022739,2]
[344640467,1733657439444,-500.0,0.00022739,2]
[344640468,1733657439453,-500.0,0.00022739,2]
[344640469,1733657439463,-500.0,0.00022739,2]
[344640470,1733657439472,-500.0,0.00022739,2]
[344640471,1733657439481,-400.98,0.00022739,2]
[344640472,1733657439490,-340.08,0.00022739,2]
[344640473,1733657439498,-500.0,0.00022739,2]
[344640474,1733657439507,-500.0,0.00022739,2]
[344640475,1733657439516,-500.0,0.00022739,2]
[344640476,1733657439525,-500.0,0.00022739,2]
[344640477,1733657439534,-500.0,0.00022739,2]
[344640478,1733657439543,-500.0,0.00022739,2]
[344640479,1733657439553,-528.83,0.00022739,2]
[344640480,1733657439562,-500.0,0.00022739,2]
[344640481,1733657439571,-500.0,0.00022739,2]
[344640482,1733657439580,-500.0,0.00022739,2]
[344640483,1733657439589,-500.0,0.00022739,2]
[344640484,1733657439598,-351.48038563,0.00022739,2]
[344640485,1733657439607,-500.0,0.00022739,2]
[344640486,1733657439616,-500.0,0.00022739,2]
[344640487,1733657439625,-500.0,0.00022739,2]
[344640488,1733657439636,-500.0,0.00022739,2]
[344640489,1733657439644,-500.0,0.00022739,2]
[344640490,1733657439654,-336.74,0.00022739,2]
[344640491,1733657439663,-500.0,0.00022739,2]
[344640492,1733657439672,-500.0,0.00022739,2]
[344640493,1733657439681,-500.0,0.00022739,2]
[344640495,1733657439689,-500.0,0.00022739,2]
[344640497,1733657439698,-500.0,0.00022739,2]
[344640499,1733657439707,-500.0,0.00022739,2]
[344640501,1733657439716,-594.08,0.00022739,2]
[344640503,1733657439725,-500.0,0.00022739,2]
[344640504,1733657439735,-497.06504831,0.00022739,2]
[344640505,1733657439744,-3645.02598495,0.0002277,2]
[344640506,1733657439753,-3000.0,0.0002277,2]
[344640507,1733657439762,-573.94,0.00022799,2]
[344640508,1733657439771,-3468.51908788,0.000228,3]
[344640509,1733657439780,-110119.12306993,0.000228,2]
[344640511,1733657439789,-500.0,0.00022815,2]
[344640513,1733657439798,-500.0,0.00022816,2]
[344640514,1733657439807,-1357.971,0.00022889,2]
[344640515,1733657439816,-116143.71454739,0.000229,5]
[344640516,1733657439825,-676.0,0.000229,2]
[344640517,1733657439834,-573.94,0.00022936,2]
[344640518,1733657439843,-200.0,0.00022965,2]
[344640519,1733657439852,-150.0,0.00022973,2]
[344640520,1733657439862,-5000.000001,0.00022997,10]
[344640521,1733657439871,-244802.11452262,0.00022998,2]
[344640522,1733657439881,-500.0,0.00022998,2]
[344640523,1733657439891,-500.0,0.00022998,2]
[344640524,1733657439901,-500.0,0.00022998,2]
[344640525,1733657439910,-500.0,0.00022998,2]
[344640526,1733657439919,-500.0,0.00022998,2]
[344640527,1733657439928,-500.0,0.00022998,2]
[344640528,1733657439938,-500.0,0.00022998,2]
[344640529,1733657439947,-500.0,0.00022998,2]
[344640530,1733657439956,-500.0,0.00022998,2]
[344640531,1733657439968,-500.0,0.00022998,2]
[344640532,1733657439981,-500.0,0.00022998,2]
[344640533,1733657439990,-500.0,0.00022998,2]
[344640534,1733657439999,-500.0,0.00022998,2]
[344640535,1733657440007,-500.0,0.00022998,2]
[344640536,1733657440016,-500.0,0.00022998,2]
[344640537,1733657440025,-500.0,0.00022998,2]
[344640538,1733657440034,-500.0,0.00022998,2]
[344640539,1733657440043,-500.0,0.00022998,2]
[344640540,1733657440052,-500.0,0.00022998,2]
[344640541,1733657440061,-500.0,0.00022998,2]
[344640542,1733657440070,-500.0,0.00022998,2]
[344640543,1733657440079,-500.0,0.00022998,2]
[344640544,1733657440088,-500.0,0.00022998,2]
[344640545,1733657440101,-500.0,0.00022998,2]
[344640546,1733657440110,-500.0,0.00022998,2]
[344640547,1733657440119,-500.0,0.00022998,2]
[344640548,1733657440129,-500.0,0.00022998,2]
[344640549,1733657440139,-500.0,0.00022998,2]
[344640550,1733657440148,-500.0,0.00022998,2]
[344640551,1733657440157,-500.0,0.00022998,2]
[344640552,1733657440166,-500.0,0.00022998,2]
[344640553,1733657440178,-500.0,0.00022998,2]
[344640554,1733657440187,-500.0,0.00022998,2]
[344640555,1733657440196,-500.0,0.00022998,2]
[344640556,1733657440205,-500.0,0.00022998,2]
[344640557,1733657440214,-500.0,0.00022998,2]
[344640558,1733657440224,-500.0,0.00022998,2]
[344640559,1733657440233,-500.0,0.00022998,2]
[344640560,1733657440242,-500.0,0.00022998,2]
[344640562,1733657440251,-500.0,0.00022998,2]
[344640564,1733657440260,-500.0,0.00022998,2]
[344640566,1733657440269,-500.0,0.00022998,2]
[344640568,1733657440278,-500.0,0.00022998,2]
[344640570,1733657440287,-500.0,0.00022998,2]
[344640571,1733657440296,-500.0,0.00022998,2]
[344640572,1733657440306,-500.0,0.00022998,2]
[344640573,1733657440315,-500.0,0.00022998,2]
[344640574,1733657440324,-500.0,0.00022998,2]
[344640575,1733657440333,-500.0,0.00022998,2]
[344640576,1733657440342,-500.0,0.00022998,2]
[344640577,1733657440351,-500.0,0.00022998,2]
[344640578,1733657440360,-500.0,0.00022998,2]
[344640579,1733657440369,-500.0,0.00022998,2]
[344640580,1733657440378,-500.0,0.00022998,2]
[344640581,1733657440389,-500.0,0.00022998,2]
[344640582,1733657440399,-500.0,0.00022998,2]
[344640583,1733657440408,-500.0,0.00022998,2]
[344640584,1733657440417,-500.0,0.00022998,2]
[344640585,1733657440426,-500.0,0.00022998,2]
[344640586,1733657440435,-500.0,0.00022998,2]
[344640587,1733657440444,-500.0,0.00022998,2]
[344640588,1733657440453,-500.0,0.00022998,2]
[344640589,1733657440462,-500.0,0.00022998,2]
[344640590,1733657440471,-500.0,0.00022998,2]
[344640591,1733657440480,-500.0,0.00022998,2]
[344640592,1733657440489,-500.0,0.00022998,2]
[344640593,1733657440498,-500.0,0.00022998,2]
[344640594,1733657440507,-500.0,0.00022998,2]
[344640595,1733657440516,-500.0,0.00022998,2]
[344640596,1733657440525,-500.0,0.00022998,2]
[344640597,1733657440534,-500.0,0.00022998,2]
[344640598,1733657440543,-500.0,0.00022998,2]
[344640599,1733657440552,-500.0,0.00022998,2]
[344640600,1733657440562,-500.0,0.00022998,2]
[344640601,1733657440571,-500.0,0.00022998,2]
[344640602,1733657440580,-500.0,0.00022998,2]
[344640603,1733657440589,-500.0,0.00022998,2]
[344640604,1733657440755,-500.0,0.00022998,2]
[344640605,1733657440765,-500.0,0.00022998,2]
[344640606,1733657440774,-500.0,0.00022998,2]
[344640607,1733657440783,-500.0,0.00022998,2]
[344640608,1733657440792,-500.0,0.00022998,2]
[344640609,1733657440802,-500.0,0.00022998,2]
[344640610,1733657440811,-500.0,0.00022998,2]
[344640611,1733657440821,-500.0,0.00022998,2]
[344640612,1733657440830,-500.0,0.00022998,2]
[344640613,1733657440839,-500.0,0.00022998,2]
[344640614,1733657440849,-500.0,0.00022998,2]
[344640615,1733657440858,-500.0,0.00022998,2]
[344640616,1733657440868,-500.0,0.00022998,2]
[344640617,1733657440878,-500.0,0.00022998,2]
[344640618,1733657440888,-500.0,0.00022998,2]
[344640619,1733657440897,-500.0,0.00022998,2]
[344640620,1733657440907,-500.0,0.00022998,2]
[344640621,1733657440916,-500.0,0.00022998,2]
[344640622,1733657440926,-500.0,0.00022998,2]
[344640623,1733657440935,-500.0,0.00022998,2]
[344640624,1733657440947,-500.0,0.00022998,2]
[344640625,1733657440956,-500.0,0.00022998,2]
[344640626,1733657440965,-500.0,0.00022998,2]
[344640627,1733657440975,-500.0,0.00022998,2]
[344640628,1733657440984,-500.0,0.00022998,2]
[344640629,1733657440994,-500.0,0.00022998,2]
[344640630,1733657441003,-500.0,0.00022998,2]
[344640631,1733657441012,-500.0,0.00022998,2]
[344640632,1733657441021,-500.0,0.00022998,2]
[344640633,1733657441030,-500.0,0.00022998,2]
[344640634,1733657441041,-500.0,0.00022998,2]
[344640635,1733657441051,-500.0,0.00022998,2]
[344640636,1733657441061,-500.0,0.00022998,2]
[344640637,1733657441069,-500.0,0.00022998,2]
[344640638,1733657441078,-500.0,0.00022998,2]
[344640639,1733657441087,-500.0,0.00022998,2]
[344640640,1733657441098,-500.0,0.00022998,2]
[344640641,1733657441111,-500.0,0.00022998,2]
[344640642,1733657441120,-500.0,0.00022998,2]
[344640643,1733657441129,-500.0,0.00022998,2]
[344640644,1733657441140,-500.0,0.00022998,2]
[344640645,1733657441150,-500.0,0.00022998,2]
[344640646,1733657441160,-500.0,0.00022998,2]
[344640647,1733657441169,-500.0,0.00022998,2]
[344640648,1733657441182,-500.0,0.00022998,2]
[344640649,1733657441191,-500.0,0.00022998,2]
[344640650,1733657441200,-500.0,0.00022998,2]
[344640651,1733657441209,-500.0,0.00022998,2]
[344640652,1733657441218,-500.0,0.00022998,2]
[344640653,1733657441227,-500.0,0.00022998,2]
[344640654,1733657441236,-500.0,0.00022998,2]
[344640655,1733657441245,-500.0,0.00022998,2]
[344640656,1733657441255,-500.0,0.00022998,2]
[344640657,1733657441264,-500.0,0.00022998,2]
[344640658,1733657441273,-500.0,0.00022998,2]
[344640659,1733657441282,-500.0,0.00022998,2]
[344640660,1733657441291,-500.0,0.00022998,2]
[344640661,1733657441301,-500.0,0.00022998,2]
[344640662,1733657441310,-500.0,0.00022998,2]
[344640663,1733657441320,-500.0,0.00022998,2]
[344640664,1733657441329,-500.0,0.00022998,2]
[344640665,1733657441339,-500.0,0.00022998,2]
[344640666,1733657441348,-500.0,0.00022998,2]
[344640667,1733657441357,-500.0,0.00022998,2]
[344640668,1733657441367,-500.0,0.00022998,2]
[344640669,1733657441376,-500.0,0.00022998,2]
[344640670,1733657441387,-500.0,0.00022998,2]
[344640671,1733657441396,-500.0,0.00022998,2]
[344640672,1733657441405,-500.0,0.00022998,2]
[344640673,1733657441415,-500.0,0.00022998,2]
[344640674,1733657441425,-500.0,0.00022998,2]
[344640675,1733657441434,-500.0,0.00022998,2]
[344640676,1733657441444,-500.0,0.00022998,2]
[344640677,1733657441454,-500.0,0.00022998,2]
[344640678,1733657441463,-500.0,0.00022998,2]
[344640679,1733657441472,-500.0,0.00022998,2]
[344640680,1733657441482,-500.0,0.00022998,2]
[344640681,1733657441491,-500.0,0.00022998,2]
[344640682,1733657441499,-500.0,0.00022998,2]
[344640683,1733657441510,-500.0,0.00022998,2]
[344640684,1733657441519,-500.0,0.00022998,2]
[344640685,1733657441528,-500.0,0.00022998,2]
[344640686,1733657441537,-500.0,0.00022998,2]
[344640687,1733657441545,-500.0,0.00022998,2]
[344640688,1733657441554,-500.0,0.00022998,2]
[344640689,1733657441563,-500.0,0.00022998,2]
[344640690,1733657441573,-500.0,0.00022998,2]
[344640691,1733657441582,-500.0,0.00022998,2]
[344640692,1733657441592,-500.0,0.00022998,2]
[344640693,1733657441601,-500.0,0.00022998,2]
[344640694,1733657441610,-500.0,0.00022998,2]
[344640695,1733657441620,-500.0,0.00022998,2]
[344640696,1733657441629,-500.0,0.00022998,2]
[344640697,1733657441641,-500.0,0.00022998,2]
[344640698,1733657441650,-500.0,0.00022998,2]
[344640699,1733657441659,-500.0,0.00022998,2]
[344640700,1733657441668,-500.0,0.00022998,2]
[344640701,1733657441679,-500.0,0.00022998,2]
[344640702,1733657441688,-500.0,0.00022998,2]
[344640703,1733657441698,-500.0,0.00022998,2]
[344640704,1733657441707,-500.0,0.00022999,2]
[344640705,1733657441715,-500.0,0.00022999,2]
[344640706,1733657441725,-500.0,0.00022999,2]
[344640707,1733657441734,-500.0,0.00022999,2]
[344640708,1733657441744,-500.0,0.00022999,2]
[344640709,1733657441752,-500.0,0.00022999,2]
[344640710,1733657441763,-500.0,0.00022999,2]
[344640711,1733657441772,-500.0,0.00022999,2]
[344640712,1733657441781,-500.0,0.00022999,2]
[344640713,1733657441791,-500.0,0.00022999,2]
[344640714,1733657441801,-500.0,0.00022999,2]
[344640715,1733657441811,-500.0,0.00022999,2]
[344640716,1733657441820,-500.0,0.00022999,2]
[344640717,1733657441830,-500.0,0.00022999,2]
[344640718,1733657441839,-500.0,0.00022999,2]
[344640719,1733657441848,-500.0,0.00022999,2]
[344640720,1733657441857,-500.0,0.00022999,2]
[344640721,1733657441866,-500.0,0.00022999,2]
[344640722,1733657441874,-500.0,0.00022999,2]
[344640723,1733657441885,-500.0,0.00022999,2]
[344640724,1733657441894,-500.0,0.00022999,2]
[344640725,1733657441903,-500.0,0.00022999,2]
[344640726,1733657441912,-500.0,0.00022999,2]
[344640727,1733657441921,-500.0,0.00022999,2]
[344640728,1733657441930,-500.0,0.00022999,2]
[344640729,1733657441940,-500.0,0.00022999,2]
[344640730,1733657441949,-500.0,0.00022999,2]
[344640731,1733657441958,-500.0,0.00022999,2]
[344640732,1733657441967,-500.0,0.00022999,2]
[344640733,1733657441976,-500.0,0.00022999,2]
[344640734,1733657441986,-500.0,0.00022999,2]
[344640735,1733657441995,-500.0,0.00022999,2]
[344640736,1733657442006,-500.0,0.00022999,2]
[344640737,1733657442015,-500.0,0.00022999,2]
[344640738,1733657442024,-500.0,0.00022999,2]
[344640739,1733657442033,-500.0,0.00022999,2]
[344640740,1733657442043,-500.0,0.00022999,2]
[344640741,1733657442052,-500.0,0.00022999,2]
[344640742,1733657442061,-500.0,0.00022999,2]
[344640743,1733657442070,-500.0,0.00022999,2]
[344640744,1733657442080,-500.0,0.00022999,2]
[344640745,1733657442090,-500.0,0.00022999,2]
[344640746,1733657442101,-500.0,0.00022999,2]
[344640747,1733657442112,-500.0,0.00022999,2]
[344640748,1733657442121,-500.0,0.00022999,2]
[344640749,1733657442130,-500.0,0.00022999,2]
[344640750,1733657442141,-500.0,0.00022999,2]
[344640751,1733657442150,-500.0,0.00022999,2]
[344640752,1733657442159,-500.0,0.00022999,2]
[344640753,1733657442169,-500.0,0.00022999,2]
[344640754,1733657442178,-500.0,0.00022999,2]
[344640755,1733657442188,-500.0,0.00022999,2]
[344640756,1733657442197,-500.0,0.00022999,2]
[344640757,1733657442207,-500.0,0.00022999,2]
[344640758,1733657442216,-500.0,0.00022999,2]
[344640759,1733657442225,-500.0,0.00022999,2]
[344640760,1733657442234,-500.0,0.00022999,2]
[344640761,1733657442243,-500.0,0.00022999,2]
[344640762,1733657442252,-500.0,0.00022999,2]
[344640763,1733657442261,-500.0,0.00022999,2]
[344640764,1733657442270,-500.0,0.00022999,2]
[344640765,1733657442279,-500.0,0.00022999,2]
[344640766,1733657442288,-500.0,0.00022999,2]
[344640767,1733657442297,-500.0,0.00022999,2]
[344640768,1733657442307,-500.0,0.00022999,2]
[344640769,1733657442317,-500.0,0.00022999,2]
[344640770,1733657442327,-500.0,0.00022999,2]
[344640771,1733657442336,-500.0,0.00022999,2]
[344640772,1733657442345,-500.0,0.00022999,2]
[344640773,1733657442355,-500.0,0.00022999,2]
[344640774,1733657442365,-500.0,0.00022999,2]
[344640775,1733657442374,-500.0,0.00022999,2]
[344640776,1733657442383,-500.0,0.00022999,2]
[344640777,1733657442393,-500.0,0.00022999,2]
[344640778,1733657442403,-500.0,0.00022999,2]
[344640779,1733657442412,-859.41579513,0.00023,2]
[344640780,1733657442422,-720497.49066425,0.00023,2]
[344640781,1733657442431,-862.2560785,0.00023,2]
[344640782,1733657442440,-202.3,0.00023,2]
[344640783,1733657442450,-15315.79,0.00023,3]
[344640784,1733657442459,-150.0,0.00023,2]
[344640785,1733657442468,-167.3997204,0.00023,2]
[344640786,1733657442478,-151.21663654,0.00023,2]
[344640787,1733657442487,-14994.0,0.00023,10]
[344640788,1733657442497,-834.636638,0.00023,10]
[344640789,1733657442506,-2000.0,0.00023,2]
[344640790,1733657442515,-1053.67,0.00023,2]
[344640791,1733657442524,-150.0,0.00023,2]
[344640792,1733657442534,-6100.0,0.00023,30]
[344640793,1733657442544,-1389.0,0.00023,3]
[344640794,1733657442553,-182.08583195,0.00023,4]
[344640795,1733657442563,-150.0,0.00023,4]
[344640796,1733657442572,-1132.53,0.00023,3]
[344640797,1733657442581,-262.3082891,0.00023,4]
[344640798,1733657442590,-168.77789691,0.00023,4]
[344640799,1733657442599,-1240.0,0.00023,3]
[344640800,1733657442609,-150.0,0.00023,4]
[344640801,1733657442618,-461.0,0.00023,2]
[344640802,1733657442627,-150.0,0.00023,4]